[Event "Titled Tuesday Blitz May 31 Early 2022"]
[White "Matveeva, Olga"]
[Black "Mickiewicz, Piotr"]
[WhiteFideId "24107018"]
[BlackFideId "1114891"]
[WhiteElo "2052"]
[BlackElo "2223"]
[Result "1-0"]
[Round "09"]
[TimeControl "180+1"]
[Date "2022.06.01"]
[WhiteClock "0:00:10"]
[BlackClock "0:00:07"]

1. d4 {[%clk 0:03:00]}  Nf6 {[%clk 0:02:56]} 2. c4 {[%clk 0:03:00]}  g6 {[%clk 0:02:56]} 3. g3 {[%clk 0:03:00]}  Bg7 {[%clk 0:02:56]} 4. Bg2 {[%clk 0:03:00]}  O-O {[%clk 0:02:56]} 5. Nf3 {[%clk 0:03:01]}  c5 {[%clk 0:02:56]} 6. d5 {[%clk 0:03:00]}  b5 {[%clk 0:02:55]} 7. cxb5 {[%clk 0:02:59]}  a6 {[%clk 0:02:55]} 8. bxa6 {[%clk 0:02:59]}  Bxa6 {[%clk 0:02:55]} 9. Nc3 {[%clk 0:02:59]}  d6 {[%clk 0:02:55]} 10. O-O {[%clk 0:02:58]}  Nbd7 {[%clk 0:02:56]} 11. Rb1 {[%clk 0:02:58]}  Qb6 {[%clk 0:02:53]} 12. b3 {[%clk 0:02:54]}  Rfb8 {[%clk 0:02:53]} 13. Qc2 {[%clk 0:02:52]}  Ne8 {[%clk 0:02:51]} 14. Bd2 {[%clk 0:02:47]}  Nc7 {[%clk 0:02:51]} 15. Rfe1 {[%clk 0:02:37]}  Nb5 {[%clk 0:02:50]} 16. e4 {[%clk 0:02:24]}  Nd4 {[%clk 0:02:41]} 17. Nxd4 {[%clk 0:02:20]}  Bxd4 {[%clk 0:02:42]} 18. Na4 {[%clk 0:02:12]}  Qa7 {[%clk 0:02:37]} 19. Bc3 {[%clk 0:02:10]}  Bb5 {[%clk 0:02:24]} 20. Bxd4 {[%clk 0:01:57]}  cxd4 {[%clk 0:02:23]} 21. Bf1 {[%clk 0:01:48]}  Bxa4 {[%clk 0:02:15]} 22. bxa4 {[%clk 0:01:48]}  Rc8 {[%clk 0:02:09]} 23. Qd1 {[%clk 0:01:38]}  Qxa4 {[%clk 0:02:02]} 24. Qxa4 {[%clk 0:01:22]}  Rxa4 {[%clk 0:02:03]} 25. Bb5 {[%clk 0:01:22]}  Ra7 {[%clk 0:02:02]} 26. Bxd7 {[%clk 0:01:22]}  Rxd7 {[%clk 0:02:00]} 27. Rb4 {[%clk 0:01:19]}  d3 {[%clk 0:01:59]} 28. Rd1 {[%clk 0:01:17]}  Ra7 {[%clk 0:01:52]} 29. a4 {[%clk 0:01:11]}  Rc3 {[%clk 0:01:50]} 30. Rd4 {[%clk 0:01:11]}  Ra3 {[%clk 0:01:48]} 31. R1xd3 {[%clk 0:01:10]}  R3xa4 {[%clk 0:01:47]} 32. Kg2 {[%clk 0:01:07]}  Ra2 {[%clk 0:01:36]} 33. Rd2 {[%clk 0:01:06]}  Rxd2 {[%clk 0:01:31]} 34. Rxd2 {[%clk 0:01:07]}  Ra3 {[%clk 0:01:30]} 35. Rb2 {[%clk 0:01:06]}  Kg7 {[%clk 0:01:28]} 36. f4 {[%clk 0:00:56]}  Re3 {[%clk 0:01:25]} 37. Rb4 {[%clk 0:00:55]}  f5 {[%clk 0:01:24]} 38. Kf2 {[%clk 0:00:41]}  Rd3 {[%clk 0:01:12]} 39. Ke2 {[%clk 0:00:32]}  Ra3 {[%clk 0:01:11]} 40. e5 {[%clk 0:00:19]}  Ra2+ {[%clk 0:00:49]} 41. Ke3 {[%clk 0:00:19]}  Rxh2 {[%clk 0:00:48]} 42. Rb7 {[%clk 0:00:19]}  Kf8 {[%clk 0:00:44]} 43. Rb8+ {[%clk 0:00:19]}  Kf7 {[%clk 0:00:43]} 44. e6+ {[%clk 0:00:18]}  Kg7 {[%clk 0:00:33]} 45. Re8 {[%clk 0:00:18]}  Rg2 {[%clk 0:00:31]} 46. Rxe7+ {[%clk 0:00:18]}  Kh6 {[%clk 0:00:31]} 47. Kf3 {[%clk 0:00:17]}  Rd2 {[%clk 0:00:31]} 48. Rd7 {[%clk 0:00:15]}  Rd3+ {[%clk 0:00:28]} 49. Ke2 {[%clk 0:00:14]}  Rd4 {[%clk 0:00:21]} 50. e7 {[%clk 0:00:13]}  Re4+ {[%clk 0:00:20]} 51. Kf3 {[%clk 0:00:13]}  Re1 {[%clk 0:00:14]} 52. Kf2 {[%clk 0:00:13]}  Re4 {[%clk 0:00:12]} 53. Kf3 {[%clk 0:00:12]}  Kh5 {[%clk 0:00:12]} 54. e8=Q {[%clk 0:00:10]}  Rxe8 {[%clk 0:00:07]} 55. Rxh7# {[%clk 0:00:10]} 1-0


[Site "https://www.chess.com"]

[Event "Titled Tuesday Blitz May 31 Early 2022"]
[White "Melian, Juan Sebastian"]
[Black "Csonka, Balazs"]
[WhiteFideId "3706575"]
[BlackFideId "742910"]
[WhiteElo "1851"]
[BlackElo "2404"]
[Result "0-1"]
[Round "09"]
[TimeControl "180+1"]
[Date "2022.06.01"]
[WhiteClock "0:00:02"]
[BlackClock "0:00:07"]

1. Nf3 {[%clk 0:02:56]}  Nf6 {[%clk 0:02:56]} 2. b3 {[%clk 0:02:56]}  d5 {[%clk 0:02:47]} 3. Bb2 {[%clk 0:02:55]}  Bg4 {[%clk 0:02:46]} 4. e3 {[%clk 0:02:51]}  Nbd7 {[%clk 0:02:46]} 5. Be2 {[%clk 0:02:50]}  e6 {[%clk 0:02:46]} 6. d4 {[%clk 0:02:48]}  Ne4 {[%clk 0:02:33]} 7. O-O {[%clk 0:02:46]}  Bd6 {[%clk 0:02:27]} 8. Ne5 {[%clk 0:02:36]}  Bxe2 {[%clk 0:02:14]} 9. Qxe2 {[%clk 0:02:37]}  O-O {[%clk 0:01:35]} 10. Nxd7 {[%clk 0:02:21]}  Qxd7 {[%clk 0:01:34]} 11. Nd2 {[%clk 0:02:21]}  Nxd2 {[%clk 0:01:22]} 12. Qxd2 {[%clk 0:02:22]}  f5 {[%clk 0:01:22]} 13. c4 {[%clk 0:02:20]}  c6 {[%clk 0:01:21]} 14. Bc3 {[%clk 0:01:59]}  Rf6 {[%clk 0:01:18]} 15. f4 {[%clk 0:01:56]}  h6 {[%clk 0:01:12]} 16. Bb4 {[%clk 0:01:56]}  Bc7 {[%clk 0:01:11]} 17. Ba5 {[%clk 0:01:54]}  Bd6 {[%clk 0:00:47]} 18. Bb4 {[%clk 0:01:52]}  Bc7 {[%clk 0:00:45]} 19. Ba5 {[%clk 0:01:51]}  Bb8 {[%clk 0:00:46]} 20. Rac1 {[%clk 0:01:43]}  Kh7 {[%clk 0:00:45]} 21. Bb4 {[%clk 0:01:34]}  Bc7 {[%clk 0:00:44]} 22. Ba5 {[%clk 0:01:34]}  Bb8 {[%clk 0:00:45]} 23. Bb4 {[%clk 0:01:33]}  a6 {[%clk 0:00:44]} 24. Bc5 {[%clk 0:01:26]}  Bc7 {[%clk 0:00:44]} 25. Qb4 {[%clk 0:01:19]}  Qc8 {[%clk 0:00:33]} 26. Be7 {[%clk 0:01:13]}  Rf7 {[%clk 0:00:31]} 27. Bd6 {[%clk 0:01:13]}  Bxd6 {[%clk 0:00:31]} 28. Qxd6 {[%clk 0:01:14]}  Qc7 {[%clk 0:00:31]} 29. Qxe6 {[%clk 0:01:03]}  Rf6 {[%clk 0:00:26]} 30. Qe5 {[%clk 0:01:03]}  Qf7 {[%clk 0:00:19]} 31. cxd5 {[%clk 0:00:15]}  Re8 {[%clk 0:00:19]} 32. dxc6 {[%clk 0:00:16]}  Rxe5 {[%clk 0:00:19]} 33. c7 {[%clk 0:00:11]}  Re8 {[%clk 0:00:17]} 34. c8=Q {[%clk 0:00:10]}  Rxc8 {[%clk 0:00:17]} 35. Rxc8 {[%clk 0:00:11]}  Re6 {[%clk 0:00:16]} 36. Rc3 {[%clk 0:00:08]}  Qe7 {[%clk 0:00:16]} 37. Kf2 {[%clk 0:00:09]}  Qb4 {[%clk 0:00:15]} 38. Rfc1 {[%clk 0:00:09]}  Rc6 {[%clk 0:00:14]} 39. Rxc6 {[%clk 0:00:05]}  Qd2+ {[%clk 0:00:15]} 40. Kf3 {[%clk 0:00:04]}  bxc6 {[%clk 0:00:16]} 41. Rxc6 {[%clk 0:00:04]}  Qxa2 {[%clk 0:00:16]} 42. Rb6 {[%clk 0:00:03]}  a5 {[%clk 0:00:15]} 43. Rb5 {[%clk 0:00:04]}  Kg6 {[%clk 0:00:12]} 44. h3 {[%clk 0:00:03]}  h5 {[%clk 0:00:12]} 45. Rb6+ {[%clk 0:00:03]}  Kf7 {[%clk 0:00:12]} 46. Rb5 {[%clk 0:00:04]}  g6 {[%clk 0:00:11]} 47. Rb6 {[%clk 0:00:04]}  h4 {[%clk 0:00:10]} 48. Ra6 {[%clk 0:00:04]}  Qd2 {[%clk 0:00:10]} 49. Rb6 {[%clk 0:00:03]}  Qd1+ {[%clk 0:00:10]} 50. Kf2 {[%clk 0:00:03]}  Qd2+ {[%clk 0:00:10]} 51. Kf3 {[%clk 0:00:04]}  Qe1 {[%clk 0:00:10]} 52. Rb7+ {[%clk 0:00:01]}  Kg8 {[%clk 0:00:10]} 53. Rb8+ {[%clk 0:00:01]}  Kh7 {[%clk 0:00:10]} 54. Rb7+ {[%clk 0:00:02]}  Kh6 {[%clk 0:00:10]} 55. g4 {[%clk 0:00:02]}  Qf1# {[%clk 0:00:07]} 0-1


[Site "https://www.chess.com"]

[Event "Titled Tuesday Blitz May 31 Early 2022"]
[White "Milanovic, Marko"]
[Black "Pakleza, Zbigniew"]
[WhiteFideId "980129"]
[BlackFideId "1119290"]
[WhiteElo "2151"]
[BlackElo "2467"]
[Result "0-1"]
[Round "09"]
[TimeControl "180+1"]
[Date "2022.06.01"]
[WhiteClock "0:00:06"]
[BlackClock "0:00:05"]

1. e4 {[%clk 0:03:00]}  d6 {[%clk 0:02:59]} 2. d4 {[%clk 0:02:58]}  Nf6 {[%clk 0:03:00]} 3. Nc3 {[%clk 0:02:58]}  c6 {[%clk 0:03:00]} 4. h3 {[%clk 0:02:56]}  b5 {[%clk 0:02:59]} 5. a3 {[%clk 0:02:56]}  e5 {[%clk 0:02:59]} 6. Nf3 {[%clk 0:02:56]}  Nbd7 {[%clk 0:02:59]} 7. Be3 {[%clk 0:02:53]}  Bb7 {[%clk 0:02:59]} 8. Be2 {[%clk 0:02:48]}  Be7 {[%clk 0:02:54]} 9. O-O {[%clk 0:02:45]}  O-O {[%clk 0:02:54]} 10. Re1 {[%clk 0:02:34]}  a5 {[%clk 0:02:38]} 11. Bd3 {[%clk 0:02:13]}  Re8 {[%clk 0:02:32]} 12. Bg5 {[%clk 0:01:55]}  Qb6 {[%clk 0:02:23]} 13. dxe5 {[%clk 0:01:44]}  dxe5 {[%clk 0:02:21]} 14. Nh4 {[%clk 0:01:41]}  g6 {[%clk 0:01:48]} 15. Qf3 {[%clk 0:01:34]}  Rad8 {[%clk 0:01:42]} 16. Ne2 {[%clk 0:01:20]}  c5 {[%clk 0:01:26]} 17. c3 {[%clk 0:01:18]}  c4 {[%clk 0:01:21]} 18. Bc2 {[%clk 0:01:16]}  Nc5 {[%clk 0:01:21]} 19. Ng3 {[%clk 0:01:15]}  Nd3 {[%clk 0:01:19]} 20. Re2 {[%clk 0:01:00]}  Bc8 {[%clk 0:00:48]} 21. b3 {[%clk 0:00:54]}  Nd7 {[%clk 0:00:25]} 22. Bxe7 {[%clk 0:00:49]}  Rxe7 {[%clk 0:00:26]} 23. bxc4 {[%clk 0:00:46]}  Nf4 {[%clk 0:00:25]} 24. Rd2 {[%clk 0:00:40]}  bxc4 {[%clk 0:00:24]} 25. Rad1 {[%clk 0:00:34]}  Ree8 {[%clk 0:00:18]} 26. Qg4 {[%clk 0:00:29]}  Nc5 {[%clk 0:00:13]} 27. Qg5 {[%clk 0:00:24]}  Rxd2 {[%clk 0:00:12]} 28. Rxd2 {[%clk 0:00:25]}  Ncd3 {[%clk 0:00:09]} 29. Ngf5 {[%clk 0:00:22]}  Qd8 {[%clk 0:00:04]} 30. Nh6+ {[%clk 0:00:16]}  Kf8 {[%clk 0:00:03]} 31. Qg3 {[%clk 0:00:13]}  Qf6 {[%clk 0:00:03]} 32. Ba4 {[%clk 0:00:12]}  Rd8 {[%clk 0:00:02]} 33. Bb5 {[%clk 0:00:12]}  Nc5 {[%clk 0:00:02]} 34. Rxd8+ {[%clk 0:00:10]}  Qxd8 {[%clk 0:00:03]} 35. Bxc4 {[%clk 0:00:11]}  Be6 {[%clk 0:00:03]} 36. Bxe6 {[%clk 0:00:10]}  Ne2+ {[%clk 0:00:03]} 37. Kh2 {[%clk 0:00:08]}  Nxg3 {[%clk 0:00:04]} 38. Nxf7 {[%clk 0:00:06]}  Nf1+ {[%clk 0:00:03]} 39. Kg1 {[%clk 0:00:06]}  Qxh4 {[%clk 0:00:03]} 40. Kxf1 {[%clk 0:00:05]}  Nxe6 {[%clk 0:00:03]} 41. Nxe5 {[%clk 0:00:06]}  Qxe4 {[%clk 0:00:02]} 42. Nd7+ {[%clk 0:00:07]}  Ke7 {[%clk 0:00:03]} 43. Nb6 {[%clk 0:00:06]}  Qb1+ {[%clk 0:00:04]} 44. Ke2 {[%clk 0:00:06]}  Qxb6 {[%clk 0:00:05]} 0-1


[Site "https://www.chess.com"]

[Event "Titled Tuesday Blitz May 31 Early 2022"]
[White "Mitrovic, Darko R"]
[Black "Bethke, Richard"]
[WhiteFideId "927023"]
[BlackFideId "12959243"]
[WhiteElo "2150"]
[BlackElo "2511"]
[Result "0-1"]
[Round "09"]
[TimeControl "180+1"]
[Date "2022.06.01"]
[WhiteClock "0:00:01"]
[BlackClock "0:00:05"]

1. d4 {[%clk 0:02:59]}  Nf6 {[%clk 0:01:45]} 2. c4 {[%clk 0:02:58]}  e6 {[%clk 0:01:44]} 3. Nf3 {[%clk 0:02:58]}  d5 {[%clk 0:01:45]} 4. g3 {[%clk 0:02:57]}  Bb4+ {[%clk 0:01:33]} 5. Nbd2 {[%clk 0:02:51]}  dxc4 {[%clk 0:01:32]} 6. Bg2 {[%clk 0:02:49]}  O-O {[%clk 0:01:31]} 7. O-O {[%clk 0:02:49]}  a5 {[%clk 0:01:31]} 8. Nxc4 {[%clk 0:02:47]}  b6 {[%clk 0:01:32]} 9. Nfe5 {[%clk 0:02:41]}  Ra7 {[%clk 0:01:30]} 10. Bg5 {[%clk 0:02:30]}  h6 {[%clk 0:01:24]} 11. Bxf6 {[%clk 0:02:29]}  Qxf6 {[%clk 0:01:25]} 12. e3 {[%clk 0:02:21]}  Bb7 {[%clk 0:01:24]} 13. Bxb7 {[%clk 0:02:19]}  Rxb7 {[%clk 0:01:25]} 14. Rc1 {[%clk 0:02:16]}  Rd8 {[%clk 0:01:25]} 15. Qf3 {[%clk 0:02:01]}  Qxf3 {[%clk 0:01:18]} 16. Nxf3 {[%clk 0:02:00]}  Nd7 {[%clk 0:01:18]} 17. Nce5 {[%clk 0:01:54]}  Bd6 {[%clk 0:01:10]} 18. Nxd7 {[%clk 0:01:46]}  Rxd7 {[%clk 0:01:10]} 19. Rc6 {[%clk 0:01:46]}  Kf8 {[%clk 0:01:08]} 20. Rfc1 {[%clk 0:01:45]}  Ke7 {[%clk 0:01:08]} 21. Kf1 {[%clk 0:01:45]}  a4 {[%clk 0:01:03]} 22. Ke2 {[%clk 0:01:43]}  Rd8 {[%clk 0:00:56]} 23. Nd2 {[%clk 0:01:42]}  Kd7 {[%clk 0:00:54]} 24. f4 {[%clk 0:01:26]}  Ra8 {[%clk 0:00:50]} 25. Ne4 {[%clk 0:01:23]}  Ra5 {[%clk 0:00:43]} 26. Nxd6 {[%clk 0:01:18]}  cxd6 {[%clk 0:00:44]} 27. R6c4 {[%clk 0:01:09]}  Raa7 {[%clk 0:00:33]} 28. R1c2 {[%clk 0:01:07]}  b5 {[%clk 0:00:33]} 29. Rc8 {[%clk 0:01:02]}  b4 {[%clk 0:00:32]} 30. R2c4 {[%clk 0:00:44]}  b3 {[%clk 0:00:28]} 31. a3 {[%clk 0:00:43]}  Rc7 {[%clk 0:00:25]} 32. R8xc7+ {[%clk 0:00:42]}  Rxc7 {[%clk 0:00:26]} 33. Kd3 {[%clk 0:00:41]}  Ra7 {[%clk 0:00:21]} 34. Kc3 {[%clk 0:00:39]}  f5 {[%clk 0:00:17]} 35. Kb4 {[%clk 0:00:37]}  g5 {[%clk 0:00:17]} 36. Kb5 {[%clk 0:00:33]}  d5 {[%clk 0:00:15]} 37. Rc5 {[%clk 0:00:30]}  Ra8 {[%clk 0:00:07]} 38. Kb6 {[%clk 0:00:28]}  h5 {[%clk 0:00:05]} 39. Rc7+ {[%clk 0:00:20]}  Kd6 {[%clk 0:00:04]} 40. Rc6+ {[%clk 0:00:19]}  Kd7 {[%clk 0:00:05]} 41. Rc7+ {[%clk 0:00:19]}  Kd6 {[%clk 0:00:05]} 42. Rc6+ {[%clk 0:00:20]}  Ke7 {[%clk 0:00:06]} 43. Rc7+ {[%clk 0:00:19]}  Kf6 {[%clk 0:00:06]} 44. Ra7 {[%clk 0:00:19]}  Rc8 {[%clk 0:00:06]} 45. Rc7 {[%clk 0:00:18]}  Rb8+ {[%clk 0:00:05]} 46. Rb7 {[%clk 0:00:17]}  Rc8 {[%clk 0:00:05]} 47. Rc7 {[%clk 0:00:16]}  Rd8 {[%clk 0:00:06]} 48. Kb5 {[%clk 0:00:13]}  Ra8 {[%clk 0:00:05]} 49. Rc6 {[%clk 0:00:11]}  g4 {[%clk 0:00:04]} 50. Ra6 {[%clk 0:00:10]}  Rc8 {[%clk 0:00:04]} 51. Rc6 {[%clk 0:00:09]}  Rh8 {[%clk 0:00:03]} 52. Kxa4 {[%clk 0:00:08]}  h4 {[%clk 0:00:03]} 53. Kxb3 {[%clk 0:00:04]}  hxg3 {[%clk 0:00:03]} 54. hxg3 {[%clk 0:00:04]}  Rh3 {[%clk 0:00:04]} 55. Rc3 {[%clk 0:00:03]}  Rxg3 {[%clk 0:00:05]} 56. a4 {[%clk 0:00:03]}  Rg1 {[%clk 0:00:05]} 57. a5 {[%clk 0:00:02]}  g3 {[%clk 0:00:06]} 58. Kb4 {[%clk 0:00:01]}  Ra1 {[%clk 0:00:04]} 59. Rc2 {[%clk 0:00:01]}  Kg6 {[%clk 0:00:04]} 60. Kb5 {[%clk 0:00:01]}  Kh5 {[%clk 0:00:04]} 61. b4 {[%clk 0:00:01]}  Kg4 {[%clk 0:00:04]} 62. Kb6 {[%clk 0:00:01]}  Kf3 {[%clk 0:00:05]} 63. b5 {[%clk 0:00:01]}  Kxe3 {[%clk 0:00:04]} 64. a6 {[%clk 0:00:01]}  Kxf4 {[%clk 0:00:05]} 0-1


[Site "https://www.chess.com"]

[Event "Titled Tuesday Blitz May 31 Early 2022"]
[White "Oparin, Grigoriy"]
[Black "Niemann, Hans Moke"]
[WhiteFideId "24125890"]
[BlackFideId "2093596"]
[WhiteElo "2665"]
[BlackElo "2632"]
[Result "1/2-1/2"]
[Round "09"]
[TimeControl "180+1"]
[Date "2022.05.31"]
[WhiteClock "0:00:40"]
[BlackClock "0:00:05"]

1. g3 {[%clk 0:03:00]}  d5 {[%clk 0:02:55]} 2. Nf3 {[%clk 0:03:00]}  Nf6 {[%clk 0:02:50]} 3. Bg2 {[%clk 0:03:01]}  c5 {[%clk 0:02:50]} 4. O-O {[%clk 0:03:01]}  e6 {[%clk 0:02:46]} 5. d4 {[%clk 0:03:00]}  cxd4 {[%clk 0:02:43]} 6. Nxd4 {[%clk 0:03:01]}  e5 {[%clk 0:02:43]} 7. Nf3 {[%clk 0:03:00]}  Nc6 {[%clk 0:02:36]} 8. c4 {[%clk 0:03:01]}  d4 {[%clk 0:02:36]} 9. e3 {[%clk 0:03:01]}  Be7 {[%clk 0:02:37]} 10. exd4 {[%clk 0:03:01]}  exd4 {[%clk 0:02:38]} 11. Bf4 {[%clk 0:03:00]}  O-O {[%clk 0:02:37]} 12. Ne5 {[%clk 0:02:56]}  Qb6 {[%clk 0:02:15]} 13. Qb3 {[%clk 0:02:46]}  Nxe5 {[%clk 0:02:08]} 14. Bxe5 {[%clk 0:02:45]}  Rd8 {[%clk 0:01:46]} 15. Nd2 {[%clk 0:02:38]}  Bc5 {[%clk 0:01:30]} 16. Qxb6 {[%clk 0:02:28]}  axb6 {[%clk 0:01:16]} 17. Bxf6 {[%clk 0:02:17]}  gxf6 {[%clk 0:01:16]} 18. a3 {[%clk 0:02:18]}  d3 {[%clk 0:01:08]} 19. Rfe1 {[%clk 0:02:12]}  Bd4 {[%clk 0:00:52]} 20. Rab1 {[%clk 0:02:12]}  Ra5 {[%clk 0:00:50]} 21. Be4 {[%clk 0:02:08]}  Re5 {[%clk 0:00:35]} 22. Nf3 {[%clk 0:01:52]}  d2 {[%clk 0:00:28]} 23. Nxd2 {[%clk 0:01:37]}  Bxf2+ {[%clk 0:00:26]} 24. Kxf2 {[%clk 0:01:38]}  Rxd2+ {[%clk 0:00:25]} 25. Kg1 {[%clk 0:01:38]}  Bh3 {[%clk 0:00:20]} 26. Bxb7 {[%clk 0:01:29]}  Rxe1+ {[%clk 0:00:20]} 27. Rxe1 {[%clk 0:01:30]}  Rxb2 {[%clk 0:00:19]} 28. Bd5 {[%clk 0:01:28]}  Kf8 {[%clk 0:00:19]} 29. Re3 {[%clk 0:01:17]}  h5 {[%clk 0:00:17]} 30. Bf3 {[%clk 0:01:11]}  Be6 {[%clk 0:00:13]} 31. Bxh5 {[%clk 0:01:09]}  Bxc4 {[%clk 0:00:13]} 32. Bf3 {[%clk 0:01:07]}  b5 {[%clk 0:00:14]} 33. h4 {[%clk 0:01:06]}  Kg7 {[%clk 0:00:14]} 34. Be4 {[%clk 0:01:00]}  Be6 {[%clk 0:00:10]} 35. Rf3 {[%clk 0:00:54]}  Bc4 {[%clk 0:00:08]} 36. Re3 {[%clk 0:00:51]}  Ra2 {[%clk 0:00:08]} 37. Rf3 {[%clk 0:00:45]}  Be6 {[%clk 0:00:07]} 38. Bc6 {[%clk 0:00:39]}  Rb2 {[%clk 0:00:06]} 39. Be4 {[%clk 0:00:39]}  Bc4 {[%clk 0:00:05]} 40. Re3 {[%clk 0:00:40]} 1/2-1/2


[Site "https://www.chess.com"]

[Event "Titled Tuesday Blitz May 31 Early 2022"]
[White "Rios Escobar, Adan"]
[Black "Baker, Chris W"]
[WhiteFideId "3403645"]
[BlackFideId "401676"]
[WhiteElo "2419"]
[BlackElo "2271"]
[Result "1-0"]
[Round "09"]
[TimeControl "180+1"]
[Date "2022.06.01"]
[WhiteClock "0:00:05"]
[BlackClock "0:00:01"]

1. d4 {[%clk 0:03:00]}  Nf6 {[%clk 0:02:54]} 2. g3 {[%clk 0:03:01]}  e6 {[%clk 0:02:50]} 3. c4 {[%clk 0:03:00]}  d5 {[%clk 0:02:50]} 4. Nf3 {[%clk 0:03:00]}  Be7 {[%clk 0:02:50]} 5. Bg2 {[%clk 0:03:00]}  O-O {[%clk 0:02:49]} 6. O-O {[%clk 0:03:01]}  dxc4 {[%clk 0:02:49]} 7. Qc2 {[%clk 0:03:00]}  b5 {[%clk 0:02:46]} 8. a4 {[%clk 0:02:58]}  bxa4 {[%clk 0:02:42]} 9. Bg5 {[%clk 0:02:55]}  Bb7 {[%clk 0:02:35]} 10. Bxf6 {[%clk 0:02:54]}  Bxf6 {[%clk 0:02:34]} 11. Ng5 {[%clk 0:02:55]}  Bxg5 {[%clk 0:02:31]} 12. Bxb7 {[%clk 0:02:55]}  Nd7 {[%clk 0:02:31]} 13. Bxa8 {[%clk 0:02:54]}  Qxa8 {[%clk 0:02:32]} 14. Qxc4 {[%clk 0:02:53]}  Nb6 {[%clk 0:02:29]} 15. Qxc7 {[%clk 0:02:48]}  Rc8 {[%clk 0:02:28]} 16. Qe5 {[%clk 0:02:47]}  Bf6 {[%clk 0:02:28]} 17. Qf4 {[%clk 0:02:34]}  Rc2 {[%clk 0:02:11]} 18. Nc3 {[%clk 0:02:21]}  Rxb2 {[%clk 0:02:04]} 19. Nxa4 {[%clk 0:02:13]}  Nxa4 {[%clk 0:01:55]} 20. Rxa4 {[%clk 0:02:14]}  Rxe2 {[%clk 0:01:54]} 21. Rb1 {[%clk 0:02:07]}  e5 {[%clk 0:01:36]} 22. dxe5 {[%clk 0:01:43]}  Bxe5 {[%clk 0:01:35]} 23. Qg4 {[%clk 0:01:35]}  Rc2 {[%clk 0:01:11]} 24. Qf5 {[%clk 0:01:27]}  Rc5 {[%clk 0:00:48]} 25. Qd7 {[%clk 0:00:35]}  g6 {[%clk 0:00:26]} 26. Rxa7 {[%clk 0:00:27]}  Qf3 {[%clk 0:00:24]} 27. Rf1 {[%clk 0:00:17]}  Kg7 {[%clk 0:00:19]} 28. Qe7 {[%clk 0:00:15]}  Rd5 {[%clk 0:00:16]} 29. Qe8 {[%clk 0:00:13]}  Bd4 {[%clk 0:00:15]} 30. Ra2 {[%clk 0:00:10]}  Rf5 {[%clk 0:00:14]} 31. Qe2 {[%clk 0:00:09]}  Qxe2 {[%clk 0:00:12]} 32. Rxe2 {[%clk 0:00:10]}  h5 {[%clk 0:00:11]} 33. Kg2 {[%clk 0:00:10]}  g5 {[%clk 0:00:10]} 34. Rd1 {[%clk 0:00:10]}  Bc5 {[%clk 0:00:10]} 35. f3 {[%clk 0:00:11]}  Kg6 {[%clk 0:00:10]} 36. Rc2 {[%clk 0:00:07]}  f6 {[%clk 0:00:09]} 37. Rb1 {[%clk 0:00:07]}  Be3 {[%clk 0:00:09]} 38. Re1 {[%clk 0:00:07]}  Bc5 {[%clk 0:00:08]} 39. Re6 {[%clk 0:00:06]}  Bd4 {[%clk 0:00:07]} 40. Re7 {[%clk 0:00:06]}  g4 {[%clk 0:00:06]} 41. f4 {[%clk 0:00:05]}  Rd5 {[%clk 0:00:06]} 42. Rcc7 {[%clk 0:00:05]}  Kf5 {[%clk 0:00:03]} 43. Rh7 {[%clk 0:00:04]}  Ke4 {[%clk 0:00:02]} 44. Rce7+ {[%clk 0:00:05]}  Kd3 {[%clk 0:00:01]} 45. Rd7 {[%clk 0:00:05]} 1-0


[Site "https://www.chess.com"]

[Event "Titled Tuesday Blitz May 31 Early 2022"]
[White "Shailesh, Dravid"]
[Black "Pinheiro, Iung Alicio de O."]
[WhiteFideId "25017969"]
[BlackFideId "2104350"]
[WhiteElo "2205"]
[BlackElo "2283"]
[Result "1-0"]
[Round "09"]
[TimeControl "180+1"]
[Date "2022.05.31"]
[WhiteClock "0:00:44"]
[BlackClock "0:00:27"]

1. b3 {[%clk 0:03:00]}  d5 {[%clk 0:02:58]} 2. Bb2 {[%clk 0:03:00]}  Bg4 {[%clk 0:02:59]} 3. f3 {[%clk 0:02:59]}  Bf5 {[%clk 0:02:53]} 4. e3 {[%clk 0:02:59]}  e6 {[%clk 0:02:51]} 5. c4 {[%clk 0:02:56]}  Nf6 {[%clk 0:02:48]} 6. Nc3 {[%clk 0:02:54]}  Bc5 {[%clk 0:02:30]} 7. d4 {[%clk 0:02:52]}  Be7 {[%clk 0:02:21]} 8. g4 {[%clk 0:02:32]}  Bg6 {[%clk 0:02:20]} 9. h4 {[%clk 0:02:31]}  h6 {[%clk 0:02:12]} 10. h5 {[%clk 0:02:31]}  Bh7 {[%clk 0:02:11]} 11. Nh3 {[%clk 0:02:28]}  c5 {[%clk 0:02:05]} 12. cxd5 {[%clk 0:02:27]}  cxd4 {[%clk 0:01:59]} 13. Bb5+ {[%clk 0:02:17]}  Kf8 {[%clk 0:01:42]} 14. Qxd4 {[%clk 0:02:13]}  exd5 {[%clk 0:01:37]} 15. Rd1 {[%clk 0:01:49]}  Nc6 {[%clk 0:01:36]} 16. Qd2 {[%clk 0:01:47]}  Qd6 {[%clk 0:01:15]} 17. Nf4 {[%clk 0:01:40]}  d4 {[%clk 0:01:02]} 18. exd4 {[%clk 0:01:38]}  Nb4 {[%clk 0:00:49]} 19. O-O {[%clk 0:01:20]}  Nfd5 {[%clk 0:00:44]} 20. Ncxd5 {[%clk 0:01:17]}  Nxd5 {[%clk 0:00:45]} 21. Nxd5 {[%clk 0:01:13]}  Qxd5 {[%clk 0:00:44]} 22. Bc4 {[%clk 0:01:13]}  Qd6 {[%clk 0:00:45]} 23. f4 {[%clk 0:01:02]}  Be4 {[%clk 0:00:36]} 24. d5 {[%clk 0:01:00]}  f5 {[%clk 0:00:29]} 25. Be5 {[%clk 0:00:55]}  Qb6+ {[%clk 0:00:29]} 26. Kh2 {[%clk 0:00:52]}  Bd6 {[%clk 0:00:28]} 27. Qd4 {[%clk 0:00:45]}  Rg8 {[%clk 0:00:27]} 28. Qxb6 {[%clk 0:00:44]} 1-0


[Site "https://www.chess.com"]